[Event "3rd Manaus Open 2024"]
[Site "Manaus"]
[Date "2024.10.16"]
[Round "7.9"]
[White "Matsuura, Everaldo"]
[Black "Silva, Guilherme Henrique D"]
[Result "1-0"]
[ECO "A20"]
[WhiteElo "2357"]
[BlackElo "2085"]
[Annotator "RC"]
[PlyCount "141"]
[EventDate "2024.10.05"]
[EventType "swiss"]
[EventCountry "BRA"]
[SourceTitle "playchess.com"]
[Source "ChessBase"]
[SourceQuality "1"]
[TimeControl "5400+30"]

1. c4 {[%emt 0:02:37]} e5 {[%emt 0:00:34]} 2. g3 {[%emt 0:01:24]} Nf6 {[%emt 0:01:09]} 3. Bg2 {[%emt 0:00:39]} d5 {[%emt 0:03:07]} 4. cxd5 {[%emt 0:00:30]} Nxd5 {[%emt 0:00:06]} 5. Nf3 {[%emt 0:01:13]} Nc6 {[%emt 0:01:53]} 6. O-O {[%emt 0:01:10]} Be7 {[%emt 0:01:09]} 7. d4 {[%emt 0:01:05]} exd4 {[%emt 0:16:19]} 8. Nxd4 {[%emt 0:00:46]} Nxd4 {[%emt 0:01:04]} 9. Qxd4 {[%emt 0:00:13]} Nf6 {[%emt 0:05:31]} 10. Qa4+ {[%emt 0:01:04]} c6 {[%emt 0:01:32]} 11. Rd1 {[%emt 0:03:30]} Qb6 {[%emt 0:02:37]} 12. Be3 {[%emt 0:15:24]} Qc7 {[%emt 0:24:47]} 13. Bf4 {[%emt 0:10:21]} Qb6 {[%emt 0:00:31]} 14. Nd2 {[%emt 0:01:45]} O-O {[%emt 0:07:48]} 15. Nc4 {[%emt 0:01:11]} Qb4 {[%emt 0:00:38]} 16. Qxb4 {[%emt 0:01:02]} Bd6 {[%emt 0:29:45]} 17. Qc5 Bxc5 {[%emt 0:00:00]} 18. a3 {[%emt 0:04:44]} Be7 {[%emt 0:00:00]} 19. Na5 {[%emt 0:05:19]} Nd5 {[%emt 0:00:00]} 20. Bd2 {[%emt 0:05:09]} Bf6 {[%emt 0:00:00]} 21. e4 {[%emt 0:03:02]} Nb6 {[%emt 0:00:00]} 22. Rab1 {[%emt 0:21:00]} Na4 {[%emt 0:00:00]} 23. b4 {[%emt 0:01:48]} Nc3 {[%emt 0:00:00]} 24. Bxc3 {[%emt 0:00:08]} Bxc3 {[%emt 0:00:00]} 25. f4 {[%emt 0:00:17]} Rb8 {[%emt 0:00:00]} 26. h3 {[%emt 0:06:07]} Bf6 {[%emt 0:00:00]} 27. Kf2 {[%emt 0:02:36]} Bd8 {[%emt 0:00:00]} 28. Rd2 {[%emt 0:00:59]} f6 {[%emt 0:00:00]} 29. Bf1 {[%emt 0:01:22]} Bb6+ {[%emt 0:00:00]} 30. Kf3 {[%emt 0:00:16]} Rd8 {[%emt 0:00:00]} 31. Rxd8+ {[%emt 0:01:14]} Bxd8 {[%emt 0:00:02]} 32. Bc4+ {[%emt 0:01:31]} Kf8 {[%emt 0:00:08]} 33. g4 {[%emt 0:00:14]} Ke7 {[%emt 0:00:26]} 34. Nb3 {[%emt 0:00:21]} Bb6 {[%emt 0:01:23]} 35. Rd1 {[%emt 0:00:32]} Be6 {[%emt 0:00:31]} 36. Bxe6 {[%emt 0:00:31]} Kxe6 {[%emt 0:00:03]} 37. f5+ {[%emt 0:02:23]} Ke7 {[%emt 0:00:10]} 38. e5 {[%emt 0:00:09]} fxe5 {[%emt 0:00:52]} 39. Ke4 {[%emt 0:00:05]} Rd8 {[%emt 0:00:28]} 40. Rxd8 {[%emt 0:00:13]} Bxd8 {[%emt 0:00:03]} 41. Nc5 {[%emt 0:00:42]} b5 {[%emt 0:05:59]} 42. Ne6 {[%emt 0:05:15]} Bb6 {[%emt 0:00:13]} 43. Nxg7 {[%emt 0:00:07]} c5 {[%emt 0:00:38]} 44. Kxe5 {[%emt 0:01:12]} c4 {[%emt 0:00:27]} 45. Ke4 {[%emt 0:00:10]} a5 {[%emt 0:01:14]} 46. Ne6 {[%emt 0:00:37]} axb4 {[%emt 0:00:31]} 47. axb4 {[%emt 0:00:06]} h6 {[%emt 0:00:44]} 48. Nf4 {[%emt 0:00:30]} Bf2 {[%emt 0:00:50]} 49. Nd5+ {[%emt 0:00:33]} Kf7 {[%emt 0:00:03]} 50. Nc3 {[%emt 0:01:17]} Be1 {[%emt 0:00:09]} 51. Nxb5 {[%emt 0:00:06]} Bxb4 {[%emt 0:00:04]} 52. Kd4 {[%emt 0:00:16]} Kf6 {[%emt 0:00:58]} 53. Kxc4 {[%emt 0:00:07]} Bf8 {[%emt 0:00:08]} 54. Nd4 {[%emt 0:00:53]} h5 {[%emt 0:00:13]} 55. Ne6 {[%emt 0:00:11]} hxg4 {[%emt 0:00:56]} 56. hxg4 {[%emt 0:00:05]} Ba3 {[%emt 0:00:35]} 57. Kd5 {[%emt 0:00:06]} Bb2 {[%emt 0:00:15]} 58. Ke4 {[%emt 0:00:08]} Bc3 {[%emt 0:00:14]} 59. g5+ {[%emt 0:00:11]} Kf7 {[%emt 0:00:11]} 60. Kf3 {[%emt 0:00:26]} Bb2 {[%emt 0:00:30]} 61. Kg4 {[%emt 0:00:07]} Bc3 {[%emt 0:00:20]} 62. Nf4 {[%emt 0:00:07]} Bb2 {[%emt 0:00:12]} 63. Nd5 {[%emt 0:00:09]} Kg7 {[%emt 0:00:14]} 64. Kh5 {[%emt 0:00:10]} Kf7 {[%emt 0:00:50]} 65. g6+ {[%emt 0:00:18]} Kg7 {[%emt 0:00:09]} 66. f6+ {[%emt 0:00:05]} Kh8 {[%emt 0:00:20]} 67. Kg5 {[%emt 0:00:27]} Bc1+ {[%emt 0:00:59]} 68. Kf5 {[%emt 0:00:08]} Bh6 {[%emt 0:00:21]} 69. Ke6 {[%emt 0:00:05]} Kg8 {[%emt 0:00:26]} 70. Ne7+ {[%emt 0:00:13]} Kh8 {[%emt 0:00:37]} 71. Kf7 {[%emt 0:00:10]} 1-0

[Event "3rd Manaus Open 2024"]
[Site "Manaus"]
[Date "2024.10.16"]
[Round "7.10"]
[White "Lira, Suan Bruno Fernandes"]
[Black "Sunye Neto, Jaime"]
[Result "1-0"]
[ECO "B66"]
[WhiteElo "2037"]
[BlackElo "2381"]
[Annotator "RC"]
[PlyCount "61"]
[EventDate "2024.10.05"]
[EventType "swiss"]
[EventCountry "BRA"]
[SourceTitle "playchess.com"]
[Source "ChessBase"]
[SourceQuality "1"]
[TimeControl "5400+30"]

1. e4 {[%emt 0:00:32]} c5 {[%emt 0:00:08]} 2. Nf3 {[%emt 0:00:12]} d6 {[%emt 0:00:20]} 3. d4 {[%emt 0:00:08]} cxd4 {[%emt 0:00:07]} 4. Nxd4 {[%emt 0:00:05]} Nf6 {[%emt 0:00:18]} 5. Nc3 {[%emt 0:00:09]} Nc6 {[%emt 0:00:08]} 6. Bg5 {[%emt 0:01:06]} Qb6 {[%emt 0:01:51]} 7. Nb3 {[%emt 0:05:05]} e6 {[%emt 0:00:16]} 8. Qd2 {[%emt 0:02:21]} a6 {[%emt 0:00:18]} 9. O-O-O {[%emt 0:05:32]} Qc7 {[%emt 0:03:32]} 10. Kb1 {[%emt 0:04:14]} Bd7 {[%emt 0:06:22]} 11. f4 {[%emt 0:02:35]} O-O-O {[%emt 0:17:16]} 12. Be2 {[%emt 0:04:31]} Be7 {[%emt 0:06:39]} 13. Bxf6 {[%emt 0:03:02]} gxf6 {[%emt 0:00:13]} 14. Bh5 {[%emt 0:07:29]} Rdf8 {[%emt 0:05:33]} 15. Rhf1 {[%emt 1:00:59]} b5 {[%emt 0:10:16]} 16. Qe2 {[%emt 0:00:00]} Kb8 {[%emt 0:01:49]} 17. Nd5 {[%emt 0:00:00]} Qd8 {[%emt 0:11:35]} 18. Nxe7 {[%emt 0:00:00]} Qxe7 {[%emt 0:00:08]} 19. Qd2 {[%emt 0:00:00]} Kc7 {[%emt 0:01:28]} 20. Rf3 {[%emt 0:00:00]} Rd8 {[%emt 0:04:36]} 21. Na5 {[%emt 0:00:00]} Kb8 {[%emt 0:15:47]} 22. Ra3 {[%emt 0:00:00]} Nxa5 {[%emt 0:02:17]} 23. Qxa5 {[%emt 0:00:00]} Bc8 {[%emt 0:00:12]} 24. Qb6+ {[%emt 0:00:00]} Ka8 {[%emt 0:01:43]} 25. Qxb5 {[%emt 0:00:00]} d5 {[%emt 0:01:45]} 26. Qc6+ {[%emt 0:00:00]} Bb7 {[%emt 0:00:34]} 27. Rxa6+ {[%emt 0:00:00]} Kb8 {[%emt 0:00:08]} 28. Qb6 {[%emt 0:00:00]} dxe4 {[%emt 0:01:23]} 29. Ra3 {[%emt 0:00:00]} Rxd1+ {[%emt 0:03:13]} 30. Bxd1 {[%emt 0:00:00]} Qd7 {[%emt 0:00:10]} 31. Be2 {[%emt 0:00:05]} 1-0

[Event "3rd Manaus Open 2024"]
[Site "Manaus"]
[Date "2024.10.17"]
[Round "8.1"]
[White "Rodriguez Vila, Andres"]
[Black "Leitao, Rafael"]
[Result "1/2-1/2"]
[ECO "E05"]
[WhiteElo "2419"]
[BlackElo "2592"]
[Annotator "TA"]
[PlyCount "49"]
[EventDate "2024.10.05"]
[EventType "swiss"]
[EventCountry "BRA"]
[SourceTitle "playchess.com"]
[Source "ChessBase"]
[SourceQuality "1"]
[TimeControl "5400+30"]

{[%evp 21,49,0,0,-19,-18,-11,-6,-30,-35,-30,-32,-45,-19,-24,-29,-64,-68,-69,0,0,0,-4,0,-24,-22,-27,-14,-37,-29,-50]} 1. d4 {[%emt 0:04:45]} Nf6 {[%emt 0:00:21]} 2. Nf3 {[%emt 0:00:22]} e6 {[%emt 0:00:36]} 3. g3 {[%emt 0:00:10]} d5 {[%emt 0:01:01]} 4. c4 {[%emt 0:00:44]} Be7 {[%emt 0:02:01]} 5. Bg2 {[%emt 0:00:23]} O-O {[%emt 0:00:24]} 6. O-O {[%emt 0:00:26]} dxc4 {[%emt 0:01:17]} 7. Qc2 {[%emt 0:02:54]} a6 {[%emt 0:04:56]} 8. a4 {[%emt 0:00:40]} Bd7 {[%emt 0:01:31]} 9. Ne5 {[%emt 0:03:00]} Bc6 {[%emt 0:04:33]} 10. Nxc6 {[%emt 0:00:16]} Nxc6 {[%emt 0:00:06]} 11. Bxc6 {[%emt 0:01:01]} bxc6 {[%emt 0:02:21]} 12. Qxc4 {[%emt 0:02:13][%cal Ob2b3]} Qd5 {[%emt 0:01:01]} 13. Nd2 {[%emt 0:02:40]} Rfd8 {[%emt 0:04:17]} 14. Qxd5 {[%emt 0:00:47] The position is equal.} (14. Rb1 {is interesting.} a5 15. b3 Bb4 16. Rb2) 14... cxd5 {[%emt 0:03:33]} 15. b3 {[%emt 0:00:49]} Bb4 {[%emt 0:01:44]} 16. Nf3 {[%emt 0:01:25]} c5 {[%emt 0:01:17]} 17. dxc5 {[%emt 0:03:20]} Bxc5 {[%emt 0:00:53]} 18. Bb2 {[%emt 0:00:57]} Ne4 {[%emt 0:03:11]} 19. Bd4 {[%emt 0:02:57]} Rab8 {[%emt 0:01:37]} ({Black should try} 19... Bf8 $15) 20. Rfc1 $11 {[%emt 0:00:13]} Rdc8 {[%emt 0:00:50]} 21. Bxc5 {[%emt 0:01:01]} Nxc5 {[%emt 0:05:42]} 22. Nd2 {[%emt 0:00:41]} Nd7 {[%emt 0:01:02]} (22... Nxb3 $2 {loses.} 23. Nxb3 g5 24. Rc5 $18) 23. Kf1 {[%emt 0:01:13]} Kf8 {[%emt 0:02:05]} 24. Ke1 {[%emt 0:01:35]} Ke7 {[%emt 0:00:30]} 25. Kd1 {[%emt 0:00:11] Weighted Error Value: White=0.11 (very precise) /Black=0.10 (very precise) .  Mistake:       	---       	Black=1      Inaccurate:     	White=1     	Black=1      OK:         	White=4     	Black=5      Best:        	White=1     	---} 1/2-1/2

[Event "3rd Manaus Open 2024"]
[Site "Manaus"]
[Date "2024.10.17"]
[Round "8.2"]
[White "Di Berardino, Diego Rafael"]
[Black "Fier, Alexandr"]
[Result "1/2-1/2"]
[ECO "E17"]
[WhiteElo "2479"]
[BlackElo "2539"]
[Annotator "TA"]
[PlyCount "35"]
[EventDate "2024.10.05"]
[EventType "swiss"]
[EventCountry "BRA"]
[SourceTitle "playchess.com"]
[Source "ChessBase"]
[SourceQuality "1"]
[TimeControl "5400+30"]

{[%evp 12,35,14,10,27,23,31,1,14,19,33,4,18,18,13,33,27,37,32,8,16,12,10,-18,-31,-33]} 1. c4 {[%emt 0:00:06]} e6 {[%emt 0:01:16]} 2. Nf3 {[%emt 0:00:36]} b6 {[%emt 0:00:21]} 3. d4 {[%emt 0:01:43]} Nf6 {[%emt 0:00:56]} 4. g3 {[%emt 0:01:27]} Bb7 {[%emt 0:00:08]} 5. Bg2 {[%emt 0:00:06]} Be7 {[%emt 0:00:03]} 6. O-O {[%emt 0:01:17]} O-O {[%emt 0:00:04]} 7. Re1 {[%emt 0:01:23]} a5 {[%emt 0:00:05]} 8. Nc3 {[%emt 0:13:23]} Ne4 {[%emt 0:00:09]} 9. Bd2 {[%emt 0:01:38]} f5 {[%emt 0:04:46] The position is equal.} 10. Ne5 {[%emt 0:03:16][%cal Bf3e5,Be5d3,Bd3f4][%mdl 32]} d6 {[%emt 0:02:50]} 11. Nd3 {[%emt 0:02:05]} Bf6 {[%emt 0:04:36]} 12. e3 {[%emt 0:14:46]} Qe8 {[%emt 0:02:44]} 13. Nf4 {[%emt 0:07:00]} Nxc3 {[%emt 0:11:03]} 14. Bxc3 {[%emt 0:00:04]} Bxg2 {[%emt 0:00:04]} 15. Nxg2 {[%emt 0:01:30]} Nc6 {[%emt 0:17:08]} 16. Nf4 {[%emt 0:09:34]} g5 {[%emt 0:04:10]} 17. Nxe6 {[%emt 0:13:04]} Qxe6 {[%emt 0:00:05]} 18. d5 {[%emt 0:00:01] Weighted Error Value: White=0.07 (flawless) /Black=0.02 (flawless) .  Inaccurate:     	White=2     	---        OK:         	White=6     	Black=6      Best:        	White=1     	---} 1/2-1/2

[Event "3rd Manaus Open 2024"]
[Site "Manaus"]
[Date "2024.10.17"]
[Round "8.3"]
[White "Delgado Ramirez, Neuris"]
[Black "Cubas, Jose Fernando"]
[Result "1-0"]
[ECO "C04"]
[WhiteElo "2496"]
[BlackElo "2412"]
[Annotator "TA"]
[PlyCount "63"]
[EventDate "2024.10.05"]
[EventType "swiss"]
[EventCountry "BRA"]
[SourceTitle "playchess.com"]
[Source "ChessBase"]
[SourceQuality "1"]
[TimeControl "5400+30"]

{[%evp 15,63,7,8,4,16,-10,-14,-17,-20,-23,-18,-12,-13,-7,-5,-9,0,0,22,24,113,0,185,54,83,65,106,0,22,20,70,70,91,62,408,383,531,541,710,725,663,649,5239,1965,29987,29970,29968,29969,5581,1191]} 1. e4 {[%emt 0:16:28]} e6 {[%emt 0:00:15]} 2. d4 {[%emt 0:00:07]} d5 {[%emt 0:00:12]} 3. Nd2 {[%emt 0:00:28]} Nc6 {[%emt 0:01:30]} 4. Ngf3 {[%emt 0:01:07]} Nf6 {[%emt 0:00:09]} 5. e5 {[%emt 0:00:38]} Nd7 {[%emt 0:00:08]} 6. Nb3 {[%emt 0:00:42]} a5 {[%emt 0:00:31]} 7. a4 {[%emt 0:00:36]} Be7 {[%emt 0:00:15]} 8. Bb5 {[%emt 0:01:41]} Na7 {[%emt 0:00:42]} 9. Bd3 {[%emt 0:01:15][%cal Od1e2]} (9. Nxa5 c6 10. Bd3 Qxa5+ $17) 9... b6 {[%emt 0:02:05]} 10. Bd2 {[%emt 0:04:30]} c5 {[%emt 0:03:24] aiming for ...c4.} 11. dxc5 {[%emt 0:00:20] The position is equal.} Nxc5 {[%emt 0:00:15]} 12. Nfd4 {[%emt 0:04:15]} Qc7 {[%emt 0:09:57]} 13. f4 {[%emt 0:01:55]} Bd7 {[%emt 0:05:20]} 14. O-O {[%emt 0:03:10]} g6 {[%emt 0:01:06]} 15. Qf3 {[%emt 0:02:47]} Rb8 {[%emt 0:18:34]} 16. Kh1 {[%emt 0:01:32][%cal Of4f5]} Nxd3 {[%emt 0:11:31]} 17. cxd3 {[%emt 0:00:32][%cal Of4f5] And now f5! would win.} Qb7 {[%emt 0:00:09]} (17... O-O $11) 18. Qg3 {[%emt 0:03:00]} (18. f5 $16 exf5 19. g4) 18... b5 $2 {[%emt 0:08:14]} (18... h5 $1 $11) 19. axb5 {[%emt 0:11:09]} ({Inferior is} 19. Nxa5 Qb6 20. Nxb5 Nxb5 21. axb5 Qxb5 $11) (19. Bxa5 bxa4 20. Nd2 O-O $17 (20... Qxb2 $2 21. Rab1 $18)) ({White must play} 19. f5 $1 $18) 19... Nxb5 {[%emt 0:00:45][%cal Oa5a4]} 20. Nxa5 {[%emt 0:08:59] White is much more active. A dynamic duo of knights.} ({But not} 20. Bxa5 Nxd4 21. Nxd4 Qxb2 $15) 20... Qb6 {[%emt 0:00:06] [#]} 21. Nxb5 {[%emt 0:00:34]} ({White should try} 21. Ndb3 $1 $16) 21... Bxb5 {[%emt 0:00:58]} 22. b4 {[%emt 0:00:15]} Qd4 {[%emt 0:01:42]} (22... O-O $11) 23. Nb3 $1 $36 {[%emt 0:05:39][%mdl 2048] Black is under pressure.} Qxd3 {[%emt 0:06:18]} 24. Rf3 {[%emt 0:00:07]} Qf5 {[%emt 0:04:03][%mdl 8192] This move loses the game for Black.} (24... Qe2 $14) 25. Nd4 $18 {[%emt 0:01:20]} Qh5 {[%emt 0:06:19]} 26. Nxb5 {[%emt 0:00:51]} Rxb5 {[%emt 0:00:03] [#]} 27. Ra8+ {[%emt 0:00:10]} Bd8 {[%emt 0:00:07] [#] Black is weak on the dark squares} 28. f5 $1 {[%emt 0:00:29][%mdl 512] Hoping for fxe6.} d4 {[%emt 0:06:36]} (28... O-O 29. fxe6) 29. fxe6 {[%emt 0:02:10] White wants to mate with Qf4.} fxe6 {[%emt 0:00:03]} 30. Qf4 {[%emt 0:00:55][%csl Gf3][%cal Rf4f7]} Qf5 {[%emt 0:00:45] [#]} 31. Rxd8+ $1 {[%emt 0:00:33][%mdl 512]} Kxd8 {[%emt 0:00:36]} 32. Qh4+ {[%emt 0:28:16] Weighted Error Value: White=0.23 (precise) /Black=0.94.  Loses game:     	---       	Black=2      Mistake:       	White=3     	Black=2      Inaccurate:     	White=1     	Black=3      OK:         	White=7     	Black=5      Best:        	White=2     	---        Strong:       	White=1     	---} (32. Qxd4+ $142 Rd5 33. Qb6+ Ke7 34. Rxf5 gxf5 35. Qc7+ Ke8 36. Qc8+ Ke7 37. Qxh8 Rxd2 38. Qxh7+ Ke8 39. h3) 1-0

[Event "3rd Manaus Open 2024"]
[Site "Manaus"]
[Date "2024.10.17"]
[Round "8.4"]
[White "Do Valle Cardoso, Lucas"]
[Black "Santiago, Yago De Moura"]
[Result "1-0"]
[ECO "D02"]
[WhiteElo "2375"]
[BlackElo "2460"]
[Annotator "RC"]
[PlyCount "109"]
[EventDate "2024.10.05"]
[EventType "swiss"]
[EventCountry "BRA"]
[SourceTitle "playchess.com"]
[Source "ChessBase"]
[SourceQuality "1"]
[TimeControl "5400+30"]

1. Nf3 {[%emt 0:02:40]} d5 {[%emt 0:00:31]} 2. g3 {[%emt 0:01:07]} g6 {[%emt 0:06:37]} 3. Bg2 {[%emt 0:02:57]} Bg7 {[%emt 0:00:16]} 4. d4 {[%emt 0:02:50]} Nf6 {[%emt 0:00:26]} 5. O-O {[%emt 0:00:25]} O-O {[%emt 0:00:07]} 6. a4 {[%emt 0:00:18]} c6 {[%emt 0:01:21]} 7. a5 {[%emt 0:00:18]} Ne4 {[%emt 0:01:12]} 8. c4 {[%emt 0:22:26]} dxc4 {[%emt 0:03:23]} 9. Qc2 {[%emt 0:01:38]} Nd6 {[%emt 0:01:48]} 10. Nbd2 {[%emt 0:05:11]} Bf5 {[%emt 0:14:31]} 11. Qa4 {[%emt 0:00:29]} Na6 {[%emt 0:02:32]} 12. Nxc4 {[%emt 0:19:42]} Be4 {[%emt 0:02:49]} 13. Rd1 {[%emt 0:05:28]} b5 {[%emt 0:14:53]} 14. axb6 {[%emt 0:00:14]} axb6 {[%emt 0:00:06]} 15. Nxd6 {[%emt 0:02:23]} exd6 {[%emt 0:11:33]} 16. Bg5 {[%emt 0:04:41]} Qc7 {[%emt 0:02:33]} 17. Bf4 {[%emt 0:03:35]} Rfe8 {[%emt 0:04:00]} 18. Qa3 {[%emt 0:02:30]} Bf8 {[%emt 0:01:11]} 19. Rac1 {[%emt 0:01:17]} Bd5 {[%emt 0:04:55]} 20. Nd2 {[%emt 0:02:50]} Bxg2 {[%emt 0:01:59]} 21. Kxg2 {[%emt 0:00:01]} Qb7 {[%emt 0:00:38]} 22. Qf3 {[%emt 0:04:03]} d5 {[%emt 0:02:07]} 23. e4 {[%emt 0:01:02]} Nb4 {[%emt 0:00:28]} 24. Be5 {[%emt 0:00:09]} Re6 {[%emt 0:00:10]} 25. exd5 {[%emt 0:00:36]} Nxd5 {[%emt 0:00:02]} 26. Ne4 {[%emt 0:00:24]} h6 {[%emt 0:00:35]} 27. h4 {[%emt 0:05:06]} Qe7 {[%emt 0:08:25]} 28. Nc3 {[%emt 0:03:31]} Nb4 {[%emt 0:04:34]} 29. Bf4 {[%emt 0:00:22]} Rd8 {[%emt 0:03:34]} 30. d5 {[%emt 0:00:12]} cxd5 {[%emt 0:00:20]} 31. Nxd5 {[%emt 0:00:06]} Nxd5 {[%emt 0:00:47]} 32. Rxd5 {[%emt 0:00:03]} Rxd5 {[%emt 0:00:08]} 33. Qxd5 {[%emt 0:00:03]} Re1 {[%emt 0:03:50]} 34. Rc7 {[%emt 0:01:06]} Qe6 {[%emt 0:00:28]} 35. Qxe6 {[%emt 0:01:19]} Rxe6 {[%emt 0:00:37]} 36. Rc8 {[%emt 0:00:06]} Kg7 {[%emt 0:00:12]} 37. Bxh6+ {[%emt 0:00:08]} Kxh6 {[%emt 0:00:02]} 38. Rxf8 {[%emt 0:00:07]} Kg7 {[%emt 0:00:28]} 39. Rb8 {[%emt 0:00:02]} Rd6 {[%emt 0:00:25]} 40. Rb7 {[%emt 0:01:25]} Kf6 {[%emt 0:00:25]} 41. g4 {[%emt 0:02:58]} g5 {[%emt 0:03:21]} 42. hxg5+ {[%emt 0:01:21]} Kxg5 {[%emt 0:00:02]} 43. Kg3 {[%emt 0:01:18]} f5 {[%emt 0:00:47]} 44. f4+ {[%emt 0:00:39]} Kg6 {[%emt 0:00:02]} 45. g5 {[%emt 0:01:11]} Rd3+ {[%emt 0:00:13]} 46. Kh4 {[%emt 0:00:07]} Rb3 {[%emt 0:00:07]} 47. Rc7 {[%emt 0:00:12]} Rxb2 {[%emt 0:02:44]} 48. Rc6+ {[%emt 0:00:01]} Kg7 {[%emt 0:00:09]} 49. Rf6 {[%emt 0:00:08]} Rb5 {[%emt 0:01:54]} 50. Kh5 {[%emt 0:00:01]} Ra5 {[%emt 0:00:41]} 51. Rxb6 {[%emt 0:00:27]} Ra7 {[%emt 0:00:30]} 52. Rg6+ {[%emt 0:00:30]} Kh7 {[%emt 0:00:23]} 53. Rf6 {[%emt 0:00:01]} Ra5 {[%emt 0:00:37]} 54. Rf7+ {[%emt 0:00:23]} Kg8 {[%emt 0:00:07]} 55. Kg6 {[%emt 0:00:25]} 1-0

[Event "3rd Manaus Open 2024"]
[Site "Manaus"]
[Date "2024.10.17"]
[Round "8.5"]
[White "Molina, Roberto Junio Brito"]
[Black "Matsuura, Everaldo"]
[Result "1/2-1/2"]
[ECO "D52"]
[WhiteElo "2381"]
[BlackElo "2357"]
[Annotator "RC"]
[PlyCount "58"]
[EventDate "2024.10.05"]
[EventType "swiss"]
[EventCountry "BRA"]
[SourceTitle "playchess.com"]
[Source "ChessBase"]
[SourceQuality "1"]
[TimeControl "5400+30"]

1. d4 {[%emt 0:03:46]} d5 {[%emt 0:00:23]} 2. c4 {[%emt 0:03:27]} c6 {[%emt 0:00:22]} 3. Nf3 {[%emt 0:01:48]} Nf6 {[%emt 0:00:18]} 4. Nc3 {[%emt 0:01:11]} e6 {[%emt 0:00:31]} 5. Bg5 {[%emt 0:01:51]} Nbd7 {[%emt 0:01:12]} 6. e3 {[%emt 0:00:14]} Qa5 {[%emt 0:00:17]} 7. Nd2 {[%emt 0:00:52]} Bb4 {[%emt 0:00:41]} 8. Qc2 {[%emt 0:00:35]} O-O {[%emt 0:00:18]} 9. Be2 {[%emt 0:02:22]} e5 {[%emt 0:03:22]} 10. O-O {[%emt 0:00:45]} exd4 {[%emt 0:01:50]} 11. Nb3 {[%emt 0:01:38]} Qc7 {[%emt 0:03:57]} 12. Nxd4 {[%emt 0:00:20]} Bd6 {[%emt 0:14:37]} 13. cxd5 {[%emt 0:08:13]} Bxh2+ {[%emt 0:02:18]} 14. Kh1 {[%emt 0:00:04]} Be5 {[%emt 0:00:29]} 15. dxc6 {[%emt 0:00:18]} bxc6 {[%emt 0:01:00]} 16. Nf3 {[%emt 0:01:42]} Bxc3 {[%emt 0:05:13]} 17. Qxc3 {[%emt 0:16:43]} Ne4 {[%emt 0:01:18]} 18. Qc2 {[%emt 0:00:10]} Nxg5 {[%emt 0:00:16]} 19. Nxg5 {[%emt 0:00:06]} Nf6 {[%emt 0:00:43]} 20. Rac1 {[%emt 0:08:09]} Rb8 {[%emt 0:14:25]} 21. Qxc6 {[%emt 0:03:48]} Qxc6 {[%emt 0:00:57]} 22. Rxc6 {[%emt 0:00:03]} h6 {[%emt 0:00:23]} 23. Nf3 {[%emt 0:00:12]} Rxb2 {[%emt 0:00:40]} 24. Bc4 {[%emt 0:00:19]} Ng4 {[%emt 0:05:32]} 25. Kg1 {[%emt 0:10:41]} Bb7 {[%emt 0:12:11]} 26. Rd6 {[%emt 0:05:53]} a5 {[%emt 0:02:48]} 27. Rd4 {[%emt 0:01:20]} h5 {[%emt 0:03:38]} 28. Rd2 {[%emt 0:06:34]} Rxd2 {[%emt 0:01:53]} 29. Nxd2 {[%emt 0:00:08]} Ne5 {[%emt 0:09:07]} 1/2-1/2